fUST/lending_fUST_20260604
["ID","MTS","AMOUNT","RATE_DAILY","PERIOD"]
[424045719,1780570847000,-231.52176973,9.489e-05,2]
[424045720,1780570849000,-500.0,9.489e-05,2]
[424045743,1780570941000,188.0,0.00023446,120]
[424045748,1780571027000,5000.0,0.0001,3]
[424045749,1780571036000,719.77462489,0.0001,3]
[424045750,1780571050000,4280.22537511,0.0001,3]
[424045972,1780571432000,-3948.92523876,9.819e-05,2]
[424045981,1780571433000,-200.0,0.00010403,2]
[424045975,1780571433000,-1200.0,9.973e-05,2]
[424045977,1780571433000,-3875.9733393,9.974e-05,2]
[424045974,1780571433000,-3004.0506852,9.918e-05,2]
[424045979,1780571433000,-163.602384,0.00010063,2]
[424045985,1780571433000,-200.0,0.00010901,2]
[424045987,1780571433000,-480.0,0.00010971,2]
[424045993,1780571433000,-152.0,0.00011015,7]
[424045991,1780571433000,-152.0,0.00011015,7]
[424045989,1780571433000,-447.396129,0.00011005,2]
[424045995,1780571433000,-1.34631537,0.00011031,2]
[424045983,1780571433000,-192.15,0.00010835,2]
[424046003,1780571433000,-500.0,0.00011225,2]
[424046000,1780571433000,-404.79766694,0.00011138,2]
[424046021,1780571433000,-3966.50611972,0.000113,2]
[424046019,1780571433000,-270.80039433,0.000113,2]
[424046017,1780571433000,-1726.06480731,0.000113,2]
[424046013,1780571433000,-500.0,0.00011225,2]
[424046011,1780571433000,-500.0,0.00011225,2]
[424046015,1780571433000,-156.60322579,0.00011225,2]
[424046009,1780571433000,-500.0,0.00011225,2]
[424046007,1780571433000,-500.0,0.00011225,2]
[424046005,1780571433000,-500.0,0.00011225,2]
[424046002,1780571433000,-500.0,0.00011225,2]
[424045998,1780571433000,-150.65368463,0.00011031,2]
[424046350,1780571439000,-151.0,0.00011393,2]
[424046342,1780571439000,-151.0,0.00011393,2]
[424046355,1780571439000,-326.63957502,0.00011399,2]
[424046353,1780571439000,-185.67538329,0.00011393,2]
[424046352,1780571439000,-151.0,0.00011393,2]
[424046340,1780571439000,-151.0,0.00011393,2]
[424046346,1780571439000,-151.0,0.00011393,2]
[424046330,1780571439000,-181.41215114,0.00010581,2]
[424046338,1780571439000,-151.0,0.00011393,2]
[424046336,1780571439000,-151.0,0.00011393,2]
[424046334,1780571439000,-151.0,0.00011393,2]
[424046328,1780571439000,-1978.02813678,0.00010475,2]
[424046332,1780571439000,-2609.1828115,0.000113,2]
[424046344,1780571439000,-151.0,0.00011393,2]
[424046348,1780571439000,-151.0,0.00011393,2]
[424046357,1780571439000,-979.59343356,0.00011399,2]
[424046376,1780571439000,-979.59343356,0.00011399,2]
[424046361,1780571439000,-979.59343356,0.00011399,2]
[424046379,1780571439000,-1327575.28826068,0.000114,2]
[424046380,1780571439000,-223877.40262252,0.000114,2]
[424046377,1780571439000,-979.59343356,0.00011399,2]
[424046375,1780571439000,-979.59343356,0.00011399,2]
[424046359,1780571439000,-979.59343356,0.00011399,2]
[424046374,1780571439000,-979.59343356,0.00011399,2]
[424046364,1780571439000,-979.59343356,0.00011399,2]
[424046378,1780571439000,-200.0,0.000114,2]
[424046371,1780571439000,-979.59343356,0.00011399,2]
[424046369,1780571439000,-979.59343356,0.00011399,2]
[424046372,1780571439000,-979.59343356,0.00011399,2]
[424046363,1780571439000,-979.59343356,0.00011399,2]
[424046367,1780571439000,-979.59343356,0.00011399,2]
[424046366,1780571439000,-979.59343356,0.00011399,2]
[424046373,1780571439000,-979.59343356,0.00011399,2]
[424047133,1780571447000,-708.15316524,0.00011399,2]
[424047132,1780571447000,-320.41994,0.00011399,2]
[424047139,1780571447000,-1028.57310524,0.00011399,2]
[424047138,1780571447000,-1028.57310524,0.00011399,2]
[424047134,1780571447000,-1028.57310524,0.00011399,2]
[424047140,1780571447000,-1028.57310524,0.00011399,2]
[424047130,1780571447000,-152.0,0.00010868,2]
[424047142,1780571447000,-1028.57310524,0.00011399,2]
[424047131,1780571447000,-152.0,0.00011018,7]
[424047137,1780571447000,-1028.57310524,0.00011399,2]
[424047135,1780571447000,-1028.57310524,0.00011399,2]
[424047145,1780571447000,-22834.64218687,0.000114,2]
[424047143,1780571447000,-1028.57310524,0.00011399,2]
[424047144,1780571447000,-1028.57310524,0.00011399,2]
[424047136,1780571447000,-1028.57310524,0.00011399,2]
[424047392,1780571921000,-403.28599003,9.357e-05,2]
[424047424,1780572037000,268.95,5e-05,2]
[424047437,1780572116000,-426.15119389,8.987e-05,2]
[424047438,1780572122000,-156.9175465,8.987e-05,2]
[424047439,1780572129000,20403.41150911,7.6e-05,2]
[424047447,1780572147000,-397.85125961,8.987e-05,2]
[424047453,1780572154000,-580.29848,8.987e-05,2]
[424047673,1780572632000,-642.23510121,8.462e-05,2]
[424047674,1780572632000,-2848.31090162,8.462e-05,2]
[424047675,1780572632000,-1973.3851566,8.547e-05,2]
[424047707,1780572638000,-500.0,0.00011006,2]
[424047706,1780572638000,-262.24164074,0.00011006,2]
[424047727,1780572638000,-500.0,0.00011094,2]
[424047705,1780572638000,-500.0,0.00011006,2]
[424047713,1780572638000,-152.0,0.00011015,7]
[424047711,1780572638000,-506.64673494,0.00011006,2]
[424047714,1780572638000,-151.5,0.00011024,2]
[424047717,1780572638000,-500.0,0.00011024,2]
[424047725,1780572638000,-205.61067487,0.00011024,2]
[424047710,1780572638000,-500.0,0.00011006,2]
[424047715,1780572638000,-151.5,0.00011024,2]
[424047716,1780572638000,-172.5757068,0.00011024,2]
[424047718,1780572638000,-500.0,0.00011024,2]
[424047723,1780572638000,-500.0,0.00011024,2]
[424047729,1780572638000,-500.0,0.00011094,2]
[424047709,1780572638000,-500.0,0.00011006,2]
[424047726,1780572638000,-164.88637112,0.00011094,2]
[424047724,1780572638000,-500.0,0.00011024,2]
[424047712,1780572638000,-152.0,0.00011015,7]
[424047708,1780572638000,-500.0,0.00011006,2]
[424047694,1780572638000,-151.5,0.00011006,2]
[424047700,1780572638000,-151.5,0.00011006,2]
[424047682,1780572638000,-1658.44732523,8.547e-05,2]
[424047683,1780572638000,-983.59412008,8.547e-05,2]
[424047684,1780572638000,-304.83493303,8.547e-05,2]
[424047685,1780572638000,-874.15403691,8.633e-05,2]
[424047686,1780572638000,-4125.84596309,8.633e-05,2]
[424047687,1780572638000,-7257.0170199,0.00010021,2]
[424047688,1780572638000,-251.20392304,0.000108,2]
[424047689,1780572638000,-5990.67815983,0.00010906,2]
[424047691,1780572638000,-403.699035,0.00010924,2]
[424047702,1780572638000,-151.5,0.00011006,2]
[424047701,1780572638000,-500.0,0.00011006,2]
[424047703,1780572638000,-500.0,0.00011006,2]
[424047693,1780572638000,-151.5,0.00011006,2]
[424047695,1780572638000,-276.92829819,0.00011006,2]
[424047692,1780572638000,-12226.1435817,0.00010959,2]
[424047698,1780572638000,-151.5,0.00011006,2]
[424047696,1780572638000,-159.08314472,0.00011006,2]
[424047699,1780572638000,-500.0,0.00011006,2]
[424047697,1780572638000,-500.0,0.00011006,2]
[424047704,1780572638000,-151.5,0.00011006,2]
[424047728,1780572638000,-500.0,0.00011094,2]
[424047754,1780572638000,-640.36512548,0.00011095,2]
[424047719,1780572638000,-500.0,0.00011024,2]
[424047749,1780572638000,-640.36512548,0.00011095,2]
[424047752,1780572638000,-640.36512548,0.00011095,2]
[424047750,1780572638000,-640.36512548,0.00011095,2]
[424047756,1780572638000,-640.36512548,0.00011095,2]
[424047766,1780572638000,-640.36512548,0.00011095,2]
[424047757,1780572638000,-640.36512548,0.00011095,2]
[424047759,1780572638000,-640.36512548,0.00011095,2]
[424047761,1780572638000,-640.36512548,0.00011095,2]
[424047758,1780572638000,-640.36512548,0.00011095,2]
[424047764,1780572638000,-640.36512548,0.00011095,2]
[424047763,1780572638000,-298.06341585,0.00011095,2]
[424047765,1780572638000,-640.36512548,0.00011095,2]
[424047760,1780572638000,-640.36512548,0.00011095,2]
[424047762,1780572638000,-342.30170963,0.00011095,2]
[424047768,1780572638000,-640.36512548,0.00011095,2]
[424047767,1780572638000,-640.36512548,0.00011095,2]
[424047769,1780572638000,-640.36512548,0.00011095,2]
[424047770,1780572638000,-640.36512548,0.00011095,2]
[424047722,1780572638000,-500.0,0.00011024,2]
[424047748,1780572638000,-334.81051821,0.00011095,2]
[424047751,1780572638000,-640.36512548,0.00011095,2]
[424047755,1780572638000,-640.36512548,0.00011095,2]
[424047747,1780572638000,-640.36512548,0.00011095,2]
[424047720,1780572638000,-500.0,0.00011024,2]
[424047721,1780572638000,-500.0,0.00011024,2]
[424047745,1780572638000,-500.0,0.00011094,2]
[424047733,1780572638000,-596.1452343,0.00011094,2]
[424047741,1780572638000,-445.27394078,0.00011094,2]
[424047731,1780572638000,-500.0,0.00011094,2]
[424047732,1780572638000,-500.0,0.00011094,2]
[424047734,1780572638000,-500.0,0.00011094,2]
[424047736,1780572638000,-500.0,0.00011094,2]
[424047740,1780572638000,-500.0,0.00011094,2]
[424047730,1780572638000,-500.0,0.00011094,2]
[424047735,1780572638000,-500.0,0.00011094,2]
[424047739,1780572638000,-500.0,0.00011094,2]
[424047742,1780572638000,-54.72605922,0.00011094,2]
[424047738,1780572638000,-500.0,0.00011094,2]
[424047743,1780572638000,-500.0,0.00011094,2]
[424047753,1780572638000,-640.36512548,0.00011095,2]
[424047746,1780572638000,-500.0,0.00011094,2]
[424047744,1780572638000,-500.0,0.00011094,2]
[424047737,1780572638000,-500.0,0.00011094,2]
[424047776,1780572639000,-1132.15115164,0.00011095,2]
[424047777,1780572639000,-1132.15115164,0.00011095,2]
[424047773,1780572639000,-1132.15115164,0.00011095,2]
[424047774,1780572639000,-1132.15115164,0.00011095,2]
[424047771,1780572639000,-640.36512548,0.00011095,2]
[424047772,1780572639000,-1132.15115164,0.00011095,2]
[424047775,1780572639000,-1132.15115164,0.00011095,2]
[424047779,1780572639000,-346946.45647882,0.00011096,2]
[424047780,1780572639000,-366930.50561856,0.00011097,2]
[424047781,1780572639000,-368.75,0.00011097,2]
[424047778,1780572639000,-5619.99046342,0.00011096,2]
[424047789,1780572640000,-2982.31923397,0.00011097,2]
[424047788,1780572640000,-1840.74709586,0.00011097,2]
[424047798,1780572643000,-2070.0,0.00011097,2]
[424047801,1780572643000,-7379.06770244,0.00011097,2]
[424047799,1780572643000,-3745.2009488,0.00011097,2]
[424047802,1780572643000,-615.50800681,0.00011097,2]
[424047808,1780572643000,-420.8168224,0.00011097,2]
[424047804,1780572643000,-1330.26478548,0.00011097,2]
[424047803,1780572643000,-17640.16221869,0.00011097,2]
[424047805,1780572643000,-1199.77605772,0.00011097,2]
[424047806,1780572643000,-11387.99103127,0.00011097,2]
[424047807,1780572643000,-608.45055747,0.00011097,2]
[424047874,1780572646000,-56714.85674459,0.00011097,2]
[424047881,1780572646000,-851.47452924,0.00011097,2]
[424047872,1780572646000,-5000.0,0.00010986,2]
[424047886,1780572646000,-625.24,0.00011097,2]
[424047888,1780572646000,-6878.8866992,0.00011097,2]
[424047884,1780572646000,-15000.0,0.00011097,2]
[424050598,1780573061000,187.8,0.00023435,120]
[424050602,1780573379000,-1726.3773634,0.00010716,3]
[424050601,1780573379000,-183.6226366,0.00010698,2]
[424050836,1780573833000,-5000.0,0.00010259,2]
[424050837,1780573833000,-331.3901274,0.00010467,2]
[424050831,1780573833000,-3061.72663755,0.00010156,2]
[424050839,1780573833000,-172.39408672,0.00010724,2]
[424050848,1780573833000,-425.73140703,0.00010724,2]
[424050841,1780573833000,-1312.05089581,0.00010724,2]
[424050843,1780573833000,-652.96699891,0.00010724,2]
[424050845,1780573833000,-841.35752164,0.00010724,2]
[424050834,1780573833000,-1938.27336245,0.00010156,2]
[424050902,1780573838000,-39058.62175502,0.00010724,2]
[424050899,1780573838000,-965.0050616,0.00010617,2]
[424050898,1780573838000,-84.30237353,0.00010617,2]
[424050920,1780573840000,-954.63932051,0.00010724,2]
[424050921,1780573840000,-76803.72378885,0.00010724,2]
[424050919,1780573840000,-2106.40144417,0.00010724,2]
[424050923,1780573840000,-620.28471784,0.00010741,2]
[424050922,1780573840000,-1558.56893635,0.00010724,2]
[424050981,1780573843000,-505.58019729,0.00011026,2]
[424050979,1780573843000,-151.0,0.00011,2]
[424050980,1780573843000,-152.0,0.00011019,7]
[424050982,1780573843000,-151.0,0.00011026,2]
[424050983,1780573843000,-151.0,0.00011026,2]
[424050978,1780573843000,-8858.97844746,0.00010741,2]
[424050985,1780573843000,-151.0,0.00011026,2]
[424050987,1780573843000,-162.380719,0.00011026,2]
[424050986,1780573843000,-151.0,0.00011026,2]
[424050989,1780573843000,-151.0,0.00011026,2]
[424050988,1780573843000,-153.55743637,0.00011026,2]
[424050984,1780573843000,-151.0,0.00011026,2]
[424050990,1780573844000,-151.0,0.00011026,2]
[424050991,1780573844000,-151.0,0.00011026,2]
[424050992,1780573844000,-151.0,0.00011026,2]
[424050995,1780573844000,-151.0,0.00011026,2]
[424050993,1780573844000,-151.0,0.00011026,2]
[424050994,1780573844000,-151.0,0.00011026,2]
[424050999,1780573844000,-151.0,0.00011026,2]
[424050996,1780573844000,-151.0,0.00011026,2]
[424050997,1780573844000,-151.0,0.00011026,2]
[424051000,1780573844000,-151.0,0.00011026,2]
[424051002,1780573844000,-151.0,0.00011026,2]
[424051001,1780573844000,-151.0,0.00011026,2]
[424051010,1780573844000,-10999.31743513,0.00011062,2]
[424051009,1780573844000,-1775.48632263,0.00011062,2]
[424051008,1780573844000,-2209.83,0.00011061,2]
[424051005,1780573844000,-172.39408671,0.00011057,2]
[424050998,1780573844000,-151.0,0.00011026,2]
[424051007,1780573844000,-157.9965883,0.00011061,2]
[424051004,1780573844000,-151.0,0.00011026,2]
[424051003,1780573844000,-151.0,0.00011026,2]
[424051006,1780573844000,-423.7520488,0.00011061,2]
[424051022,1780573846000,-135.41206362,0.00011062,2]
[424051021,1780573846000,-886.3654462,0.00011062,2]
[424051019,1780573846000,-22389.44834273,0.00011062,2]
[424051020,1780573846000,-5834.98745021,0.00011062,2]
[424051422,1780575012000,-293.09379332,9.039e-05,2]
[424051421,1780575012000,-516.76796848,8.949e-05,2]
[424051448,1780575032000,-809.86063362,8.949e-05,2]
[424051450,1780575032000,-4706.90620668,9.039e-05,2]
[424051454,1780575032000,-378.0,9.379e-05,2]
[424051456,1780575032000,-3307.34007693,9.38e-05,2]
[424051464,1780575032000,-413.17553874,9.768e-05,2]
[424051460,1780575032000,-2612.7653808,9.38e-05,2]
[424051452,1780575032000,-157.91199,9.13e-05,2]
[424051462,1780575032000,-827.66268191,9.573e-05,2]
[424051458,1780575032000,-653.84519039,9.38e-05,2]
[424051468,1780575032000,-5333.46029006,0.00010182,2]
[424051471,1780575032000,-621.3737779,0.00010282,2]
[424051472,1780575032000,-1118.47280022,0.00010282,2]
[424051474,1780575032000,-810.40418414,0.00010282,2]
[424051466,1780575032000,-781.53771107,9.874e-05,2]
[424051550,1780575038000,-1177.99190513,0.00010282,2]
[424051551,1780575038000,-3106.86888949,0.00010282,2]
[424051552,1780575038000,-4473.89120086,0.00010282,2]
[424051553,1780575038000,-159.26074458,0.00010282,2]
[424051555,1780575038000,-1433.34670123,0.00010282,2]
[424051554,1780575038000,-637.04297832,0.00010282,2]
[424051556,1780575038000,-2548.1719133,0.00010282,2]
[424051557,1780575038000,-3981.51861453,0.00010282,2]
[424051573,1780575038000,-2866.49295455,0.00010524,2]
[424051566,1780575038000,-14554.76961443,0.00010524,2]
[424051558,1780575038000,-172.39408671,0.00010501,2]
[424051559,1780575038000,-36763.10031195,0.00010524,2]
[424051564,1780575038000,-19401.29810783,0.00010524,2]
[424051849,1780575040000,-360.52029696,0.00010524,2]
[424051819,1780575040000,-1842.40989433,0.00010524,2]
[424052206,1780575043000,-1225.71425379,0.00010524,2]
[424052245,1780575044000,-942.35491879,0.00010524,2]
[424052512,1780575046000,-7408.94175514,0.00010524,2]
[424052509,1780575046000,-8567.49650068,0.00010524,2]
[424053446,1780575733000,1261.37949011,7.6e-05,2]
[424053451,1780575806000,-628.82847377,9.28e-05,2]
[424053450,1780575806000,-349.3491521,9.28e-05,2]
[424053449,1780575806000,-302.19210819,9.188e-05,2]
[424053452,1780575807000,-1117.91728671,9.28e-05,2]
[424053453,1780575807000,-2601.71297923,9.289e-05,2]
[424053454,1780575821000,-5000.0,9.196e-05,2]
[424053456,1780575866000,-2000.0,9.104e-05,2]
[424053459,1780575906000,-467.379,9.104e-05,2]
[424053461,1780575947000,-964.828,9.104e-05,2]
[424053462,1780575963000,-536.42,9.104e-05,2]
[424053463,1780575994000,-307.75,9.104e-05,2]
[424053464,1780576009000,-213.813,9.104e-05,2]
[424053465,1780576026000,-300.0,9.104e-05,2]
[424053470,1780576053000,-1276.31,8.923e-05,2]
[424053471,1780576074000,-1203.0,8.923e-05,2]
[424053554,1780576225000,-500.00364558,8.834e-05,2]
[424053591,1780576232000,-377.4679371,8.834e-05,2]
[424054006,1780576238000,-1249.11955299,8.834e-05,2]
[424054007,1780576238000,-213.49068274,9.104e-05,7]
[424054008,1780576238000,-378.07394066,9.28e-05,2]
[424054004,1780576238000,-2873.40886433,8.834e-05,2]
[424054011,1780576238000,-213.49068274,9.286e-05,7]
[424054009,1780576238000,-432.08450362,9.28e-05,2]
[424054010,1780576238000,-186.9128434,9.286e-05,7]
[424054012,1780576238000,-176.77091092,9.559e-05,7]
[424055747,1780576254000,-0.00432402,9.832e-05,7]
[424055726,1780576254000,-36.71977182,9.559e-05,7]
[424055810,1780576255000,-651.0,0.00010524,2]
[424055806,1780576255000,-651.0,0.00010524,2]
[424055802,1780576255000,-300.0,0.000105,2]
[424055800,1780576255000,-300.0,0.000105,2]
[424055791,1780576255000,-3408.20458672,0.00010053,2]
[424055795,1780576255000,-336.415862,0.00010155,2]
[424055793,1780576255000,-1591.79541328,0.00010053,2]
[424055798,1780576255000,-233.0025715,0.00010411,2]
[424055789,1780576255000,-120.93137354,9.832e-05,7]
[424055786,1780576255000,-92.5593092,9.832e-05,7]
[424055784,1780576255000,-280.3649411,9.832e-05,7]
[424055808,1780576255000,-651.0,0.00010524,2]
[424055796,1780576255000,-213.49068278,0.00010196,7]
[424055804,1780576255000,-1128.0,0.000105,2]
[424055836,1780576255000,-500.0,0.00010582,2]
[424055813,1780576255000,-651.0,0.00010524,2]
[424055844,1780576255000,-360.05467139,0.00010582,2]
[424055847,1780576255000,-336.415862,0.00010582,2]
[424055849,1780576255000,-2730.42125718,0.00010583,2]
[424055812,1780576255000,-651.0,0.00010524,2]
[424055840,1780576255000,-287.03903883,0.00010582,2]
[424055834,1780576255000,-651.0,0.00010524,2]
[424055843,1780576255000,-168.08820943,0.00010582,2]
[424055832,1780576255000,-651.0,0.00010524,2]
[424055830,1780576255000,-651.0,0.00010524,2]
[424055828,1780576255000,-651.0,0.00010524,2]
[424055826,1780576255000,-744.25643161,0.00010524,2]
[424055824,1780576255000,-651.0,0.00010524,2]
[424055838,1780576255000,-500.0,0.00010582,2]
[424056209,1780576272000,-3990.21605371,0.00010583,2]
[424057062,1780577432000,-586.94081868,9.364e-05,2]
[424057063,1780577432000,-1489.05957598,9.364e-05,2]
[424057064,1780577432000,-2923.99960534,9.364e-05,2]
[424057065,1780577432000,-179.24543092,9.665e-05,2]
[424057066,1780577432000,-189.4949645,9.665e-05,2]
[424057069,1780577432000,-1562.24562101,9.946e-05,2]
[424057068,1780577432000,-300.0,9.945e-05,2]
[424057070,1780577432000,-1756.05260374,9.946e-05,2]
[424057067,1780577432000,-300.0,9.945e-05,2]
[424057270,1780577442000,-261.31603506,9.946e-05,2]
[424057254,1780577442000,-2053.92148571,9.847e-05,2]
[424057259,1780577442000,-2946.07851429,9.847e-05,2]
[424057263,1780577442000,-10035.84856579,9.946e-05,2]
[424057261,1780577442000,-8099.53809475,9.946e-05,2]
[424057348,1780577443000,-6384.1,9.946e-05,2]
[424057514,1780577444000,-300.0,0.00010144,2]
[424057519,1780577444000,-300.0,0.00010144,2]
[424057523,1780577444000,-300.0,0.00010144,2]
[424057521,1780577444000,-300.0,0.00010144,2]
[424057529,1780577444000,-151.0,0.00010533,2]
[424057534,1780577444000,-151.0,0.00010533,2]
[424057530,1780577444000,-151.0,0.00010533,2]
[424057526,1780577444000,-151.0,0.00010533,2]
[424057536,1780577444000,-151.0,0.00010533,2]
[424057517,1780577444000,-300.0,0.00010144,2]
[424057532,1780577444000,-151.0,0.00010533,2]
[424057525,1780577444000,-600.0,0.00010346,2]
[424057512,1780577444000,-300.0,0.00010144,2]
[424057507,1780577444000,-300.0,0.00010144,2]
[424057516,1780577444000,-300.0,0.00010144,2]
[424057515,1780577444000,-300.0,0.00010144,2]
[424057509,1780577444000,-300.0,0.00010144,2]
[424057538,1780577444000,-151.0,0.00010533,2]
[424057501,1780577444000,-300.0,0.00010144,2]
[424057499,1780577444000,-300.0,0.00010144,2]
[424057503,1780577444000,-300.0,0.00010144,2]
[424057505,1780577444000,-300.0,0.00010144,2]
[424057497,1780577444000,-262.66940083,9.951e-05,2]
[424057493,1780577444000,-9059.4953785,9.946e-05,2]
[424057495,1780577444000,-4666.77775382,9.946e-05,2]
[424057492,1780577444000,-1167.8360847,9.946e-05,2]
[424057510,1780577444000,-300.0,0.00010144,2]
[424057540,1780577444000,-151.0,0.00010533,2]
[424057490,1780577444000,-11314.52680135,9.946e-05,2]
[424057544,1780577444000,-151.0,0.00010533,2]
[424057597,1780577444000,-21.07635976,0.00011205,2]
[424057593,1780577444000,-159.53080739,0.00011062,2]
[424057591,1780577444000,-151.0,0.00011062,2]
[424057595,1780577444000,-161.38,0.00011111,2]
[424057589,1780577444000,-151.0,0.00011062,2]
[424057572,1780577444000,-155.53545608,0.00011026,2]
[424057570,1780577444000,-307.70499672,0.00011026,2]
[424057576,1780577444000,-1000.0,0.00011062,2]
[424057585,1780577444000,-88.34283285,0.00011062,2]
[424057574,1780577444000,-1000.0,0.00011062,2]
[424057578,1780577444000,-1000.0,0.00011062,2]
[424057583,1780577444000,-936.18960364,0.00011062,2]
[424057580,1780577444000,-1000.0,0.00011062,2]
[424057587,1780577444000,-151.0,0.00011062,2]
[424057567,1780577444000,-2773.8564183,0.00010959,2]
[424057569,1780577444000,-151.0,0.00011,2]
[424057557,1780577444000,-151.0,0.00010533,2]
[424057556,1780577444000,-151.0,0.00010533,2]
[424057550,1780577444000,-151.0,0.00010533,2]
[424057559,1780577444000,-151.0,0.00010533,2]
[424057561,1780577444000,-151.0,0.00010533,2]
[424057542,1780577444000,-151.0,0.00010533,2]
[424057552,1780577444000,-151.0,0.00010533,2]
[424057546,1780577444000,-151.0,0.00010533,2]
[424057554,1780577444000,-151.0,0.00010533,2]
[424057563,1780577444000,-154.90985814,0.00010533,2]
[424057565,1780577444000,-224.277241,0.00010915,2]
[424057548,1780577444000,-151.0,0.00010533,2]
[424057874,1780577447000,-151.0,0.00011298,2]
[424057872,1780577447000,-151.31772695,0.00011205,2]
[424057883,1780577447000,-151.0,0.000113,2]
[424057886,1780577447000,-83.30155405,0.00011305,2]
[424057881,1780577447000,-151.0,0.000113,2]
[424057879,1780577447000,-151.0,0.000113,2]
[424057885,1780577447000,-151.0,0.000113,2]
[424057877,1780577447000,-162.380719,0.00011298,2]
[424062593,1780577739000,242.06,5e-05,2]
[424062679,1780578431000,-310.36452317,9.111e-05,2]
[424062680,1780578435000,-177.19567882,9.111e-05,2]
[424062682,1780578437000,-62.00921752,9.111e-05,2]
[424062681,1780578437000,-310.36452317,9.02e-05,2]
[424062683,1780578441000,-336.57899379,9.111e-05,2]
[424062684,1780578443000,-297.6729855,9.111e-05,2]
[424062696,1780578452000,-500.0,9.111e-05,2]
[424062697,1780578453000,-931.48,9.111e-05,2]
[424062698,1780578455000,-450.43058049,9.111e-05,2]
[424062699,1780578457000,-500.0,9.111e-05,2]
[424062701,1780578458000,654.5136004,9.02e-05,2]
[424062700,1780578458000,505.30127695,9.02e-05,2]
[424062702,1780578459000,-231.52176973,9.02e-05,2]
[424062707,1780578476000,-258.83556483,9.02e-05,2]
[424062708,1780578477000,-313.13097928,9.02e-05,2]
[424062808,1780578631000,-2018.78515868,8.841e-05,2]
[424062806,1780578631000,-2575.47473491,8.841e-05,2]
[424062799,1780578631000,-405.74010641,8.841e-05,2]
[424062815,1780578631000,-392.07976699,9.678e-05,2]
[424062817,1780578631000,-7123.12112339,0.00010076,2]
[424062813,1780578631000,-651.99820761,9.02e-05,2]
[424062811,1780578631000,-5000.0,8.93e-05,2]
[424063150,1780578638000,-300.0,0.00010277,2]
[424063148,1780578638000,-300.0,0.00010277,2]
[424063161,1780578638000,-300.0,0.00010277,2]
[424063144,1780578638000,-152.0,0.00010197,7]
[424063163,1780578638000,-300.0,0.00010277,2]
[424063165,1780578638000,-300.0,0.00010277,2]
[424063169,1780578638000,-300.0,0.00010277,2]
[424063177,1780578638000,-190.22726229,0.00010277,2]
[424063171,1780578638000,-300.0,0.00010277,2]
[424063173,1780578638000,-300.0,0.00010277,2]
[424063146,1780578638000,-300.0,0.00010277,2]
[424063168,1780578638000,-300.0,0.00010277,2]
[424063155,1780578638000,-300.0,0.00010277,2]
[424063135,1780578638000,-644.8428423,0.00010076,2]
[424063159,1780578638000,-300.0,0.00010277,2]
[424063142,1780578638000,-4230.1511188,0.00010097,2]
[424063153,1780578638000,-300.0,0.00010277,2]
[424063151,1780578638000,-300.0,0.00010277,2]
[424063141,1780578638000,-2472.4923704,0.00010076,2]
[424063133,1780578638000,-2727.57000341,0.00010076,2]
[424063139,1780578638000,-6002.3806956,0.00010076,2]
[424063137,1780578638000,-3116.1242442,0.00010076,2]
[424063116,1780578638000,-576.6956,0.00010076,2]
[424063112,1780578638000,-2025.2072,9.975e-05,2]
[424063114,1780578638000,-2974.7928,9.975e-05,2]
[424063175,1780578638000,-356.058,0.00010277,2]
[424063157,1780578638000,-300.0,0.00010277,2]
[424063182,1780578638000,-151.0,0.0001056,2]
[424063199,1780578638000,-151.0,0.0001056,2]
[424063186,1780578638000,-151.0,0.0001056,2]
[424063179,1780578638000,-600.0,0.00010482,2]
[424063227,1780578638000,-213.70956393,0.00011026,2]
[424063231,1780578638000,-11261.03193686,0.00011105,2]
[424063221,1780578638000,-500.0,0.00010951,2]
[424063229,1780578638000,-160.93392201,0.00011026,2]
[424063233,1780578638000,-14452.56778394,0.00011105,2]
[424063223,1780578638000,-434.93151991,0.00010951,2]
[424063219,1780578638000,-500.0,0.00010951,2]
[424063217,1780578638000,-500.0,0.00010951,2]